Workbook

Sheet Calculation
E1: Ariba won't accept this specific excel filetype as an attachment.
E2: Please save as PDF or print>scan, and attach to the expense report.
B4: Traveler included in meal ? | C4: Yes | E4: =IF(C20="no"," Tax Charged","") -> Tax Charged | F4: =IF(C20="No",C14,"") -> 1
B5: Number of all "other" participants, all must be on Travel Status | C5: 1 | F5: =IF(C20="No",C13,"") -> 1
E6: =IF(C20="no"," Tax Rate","") -> Tax Rate | F6: =IF(C20="No",(F4/F5),"") -> 1
B7: Meal per diem rate for travel location | C7: 10
B8: Meal purchased | C8: Dinner | E8: =IF(C20="no"," ( Sub Total - Alcohol )"," ( Total - Alcohol )") -> ( Sub Total - Alcohol ) | F8: =IF(C20="No",C13,C21) -> 1 | G8: - | H8: =IF(C20="No",C11,C11) -> 0 | I8: = | J8: =IF(C20="No",(F8-H8),(F8-H8)) -> 1
B9: Per Diem Rate | C9: =INDEX('Per Diem Rates'!$D$3:$D$1661,MATCH(Calculation!C7,IF('Per Diem Rates'!$C$3:$C$1661=Calculation!C8,'Per Diem Rates'!$B$3:$B$1661),0)) -> 5 | E9: =IF(C20="no"," ( 1 + Tax Rate )","") -> ( 1 + Tax Rate ) | F9: =IF(C20="no",1,"") -> 1 | G9: =IF(C20="no","+","") -> + | H9: =IF(C20="No",F6,"") -> 1 | I9: =IF(C20="no","=","") -> = | J9: =IF(C20="No",(F9+H9),"") -> 2
E10: Claimed | J10: =IF(C20="No",(J8*J9),(J8)) -> 2
B11: Alcohol | C11: 0
E12: Claimed | F12: =IF(C20="No",J10,J10) -> 2
B13: =IF(C20="Yes","Calculation uses data in yellow cells below, disregard this cell >","Sub Total") -> Sub Total | C13: 1 | E13: + Tip | F13: =IF(C20="No",C16,C22) -> 1
B14: =IF(C20="Yes","Calculation uses data in yellow cells below, disregard this cell >","Tax Charged") -> Tax Charged | C14: 1 | E14: - Traveler's Per Diem | F14: =IF(C4="No",0,C9) -> 5
B15: =IF(C20="Yes","Calculation uses data in yellow cells below, disregard this cell >","Total") -> Total | C15: =C13+C14 -> 2 | E15: MPO Claimed | F15: =IF((F12+F13-F14)<0,0,(F12+F13-F14)) -> 0
B16: =IF(C20="Yes","Calculation uses data in yellow cells below, disregard this cell >","Tip") -> Tip | C16: 1
E17: MPO Claimed | F17: =F15 -> 0
B18: Grand Total | C18: =IF(C20="yes",(C21+C22),(C13+C14+C16)) -> 3 | E18: / # of Participants | F18: =C5 -> 1
E19: Average Meal Cost | F19: =F17/F18 -> 0
B20: Receipt ONLY shows Total & Tip ? | C20: No
B21: =IF(C20="Yes","Total","Calculation uses data in blue cells above, disregard this cell >") -> Calculation uses data in blue cells above, disregard this cell > | C21: 0 | E21: Per Diem Rate Violation | F21: =IF(F19<C9, "No", "Yes") -> No
B22: =IF(C20="Yes","Tip","Calculation uses data in blue cells above, disregard this cell >") -> Calculation uses data in blue cells above, disregard this cell > | C22: 0
E23: Meals Paid for Others
B24: I N S T R U C T I O N S | E24: Reimbursable | F24: =IF(F19<C9, (F19*C5), (C9*C5)) -> 0 | G24: > | H24: Reimbursed on the Meals Paid for Others line.
B25: ◊ Choose Yes/No regarding the Traveler's participation | E25: Over Per Diem | F25: =IF(C4="No",IF(F15<=0,0,(MAX(0,(F19*C5)-(C9*C5)))),IF(F19<C9,0,((F19*C5)-(C9*C5)))) -> 0 | G25: > | H25: Only on a 64x budget with a UW business reason.
B26: ◊ Enter the # of Participants, DO NOT include the traveler | E26: Alcohol | F26: =IF(C20="No", (C11*(1+F6)), (C11)) -> 0 | G26: > | H26: Includes tax, alcohol taxes for location is unknown.
E27: Traveler Per Diem | F27: =IF(C4="No",0,IF(C20="yes",IF(F12+F13<C9,F12+F13,C9),IF(F12+F13<C9,F12+F13,C9))) -> 3 | G27: > | H27: Reimburse on the Traveler's Per Diem Meals line.
B28: ◊ Select the total allowed per diem for travel location. | E28: Grand Total | F28: =F24+F26+F25+F27 -> 3
B29: This information can be found on the GSA site
B30: http://www.gsa.gov/portal/content/104877 | E30: UW Business Reason :
B31: and attach proof to the expense report. | E31: [[ Enter information ]]
B32: ◊ Select the claimed meal.
B33: ◊ The per diem rate for the location and meal will auto-calculate.
B34: Meal breakdown is 25% for breakfast. | E34: Name of Traveler : | F34: [[ Enter information ]]
B35: Meal breakdown is 30% for lunch. | E35: Location of Meal (City, State) : | G35: [[ Enter information ]]
B36: Meal breakdown is 45% for dinner. | E36: Participant Name : | J36: Duty/Home Station (City, State) :
E37: [[ Enter information ]] | J37: [[ Enter information ]]
B38: ◊ Enter the total for alcohol.
B40: ◊ Enter the sub total found on the receipt.
B41: The sub total should include all alcohol expenses.
B42: ◊ Enter the taxes charged on the sub total, found on the receipt.
B43: If the alcohol is charged separate taxes, do not include.
B44: ◊ Enter the total found on the receipt.
B45: ◊ Enter the tip amount.
B46: Tips are an incidental cost.
B47: Incidentals are included in the meals per diem rate.
B49: ◊ The Grand Total should be the sum of the receipt total and tip.
B50: Utilize this data to double check that inputs are correct.
B52: ◊ Choose Yes if the receipt doesn't show the sub-total or taxes.
B53: Receipt must still be itemized for food items.
B54: Receipt only shows the grand total ?
B55: No sub-total and tax calculation available ?
B56: Select Yes, and enter the amounts below.
B57: ◊ If Yes is selected above, enter the total.
B58: ◊ If Yes is selected above, enter the tip amount.

Sheet Per Diem Rates (hidden)
B2: Per Diem Daily Limit | C2: Meal | D2: Per Diem Allowance | F2: Total | G2: Ariba Chk | I2: Data V #1 | K2: Data V #2 | M2: Data V #3
B3: 3 | C3: Breakfast | D3: =ROUND(B3*0.25,0) -> 1 | I3: Breakfast | K3: 3 | M3: Yes
B4: =B3 -> 3 | C4: Lunch | D4: =ROUND(B3*0.3,0) -> 1 | I4: Lunch | K4: 4 | M4: No
B5: =B3 -> 3 | C5: Dinner | D5: =ROUND(B3*0.45,0) -> 1 | F5: =(D4+D3+D5) -> 3 | G5: =(D4+D3+D5)-F5 -> 0 | I5: Dinner | K5: 5
B6: 4 | C6: Breakfast | D6: =ROUND(B6*0.25,0) -> 1 | K6: 6
B7: =B6 -> 4 | C7: Lunch | D7: =ROUND(B6*0.3,0) -> 1 | K7: 7
B8: =B6 -> 4 | C8: Dinner | D8: =ROUND(B6*0.45,0) -> 2 | F8: =(D7+D6+D8) -> 4 | G8: =(D7+D6+D8)-F8 -> 0 | K8: 8
B9: 5 | C9: Breakfast | D9: =ROUND(B9*0.25,0) -> 1 | K9: 9
B10: =B9 -> 5 | C10: Lunch | D10: =ROUND(B9*0.3,0) -> 2 | K10: 10
B11: =B9 -> 5 | C11: Dinner | D11: =ROUND(B9*0.45,0) -> 2 | F11: =(D10+D9+D11) -> 5 | G11: =(D10+D9+D11)-F11 -> 0 | K11: 11
B12: 6 | C12: Breakfast | D12: =ROUND(B12*0.25,0) -> 2 | K12: 12
B13: =B12 -> 6 | C13: Lunch | D13: =ROUND(B12*0.3,0) -> 2 | K13: 13
B14: =B12 -> 6 | C14: Dinner | D14: =ROUND(B12*0.45,0) -> 3 | F14: =(D13+D12+D14) -> 7 | G14: =(D13+D12+D14)-F14 -> 0 | K14: 14
B15: 7 | C15: Breakfast | D15: =ROUND(B15*0.25,0) -> 2 | K15: 15
B16: =B15 -> 7 | C16: Lunch | D16: =ROUND(B15*0.3,0) -> 2 | K16: 16
B17: =B15 -> 7 | C17: Dinner | D17: =ROUND(B15*0.45,0) -> 3 | F17: =(D16+D15+D17) -> 7 | G17: =(D16+D15+D17)-F17 -> 0 | K17: 17
B18: 8 | C18: Breakfast | D18: =ROUND(B18*0.25,0) -> 2 | K18: 18
B19: =B18 -> 8 | C19: Lunch | D19: =ROUND(B18*0.3,0) -> 2 | K19: 19
B20: =B18 -> 8 | C20: Dinner | D20: =ROUND(B18*0.45,0) -> 4 | F20: =(D19+D18+D20) -> 8 | G20: =(D19+D18+D20)-F20 -> 0 | K20: 20
B21: 9 | C21: Breakfast | D21: =ROUND(B21*0.25,0) -> 2 | K21: 21
B22: =B21 -> 9 | C22: Lunch | D22: =ROUND(B21*0.3,0) -> 3 | K22: 22
B23: =B21 -> 9 | C23: Dinner | D23: =ROUND(B21*0.45,0) -> 4 | F23: =(D22+D21+D23) -> 9 | G23: =(D22+D21+D23)-F23 -> 0 | K23: 23
B24: 10 | C24: Breakfast | D24: =ROUND(B24*0.25,0) -> 3 | K24: 24
B25: =B24 -> 10 | C25: Lunch | D25: =ROUND(B24*0.3,0) -> 3 | K25: 25
B26: =B24 -> 10 | C26: Dinner | D26: =ROUND(B24*0.45,0) -> 5 | F26: =(D25+D24+D26) -> 11 | G26: =(D25+D24+D26)-F26 -> 0 | K26: 26
B27: 11 | C27: Breakfast | D27: =ROUND(B27*0.25,0) -> 3 | K27: 27
B28: =B27 -> 11 | C28: Lunch | D28: =ROUND(B27*0.3,0) -> 3 | K28: 28
B29: =B27 -> 11 | C29: Dinner | D29: =ROUND(B27*0.45,0) -> 5 | F29: =(D28+D27+D29) -> 11 | G29: =(D28+D27+D29)-F29 -> 0 | K29: 29
B30: 12 | C30: Breakfast | D30: =ROUND(B30*0.25,0) -> 3 | K30: 30
B31: =B30 -> 12 | C31: Lunch | D31: =ROUND(B30*0.3,0) -> 4 | K31: 31
B32: =B30 -> 12 | C32: Dinner | D32: =ROUND(B30*0.45,0) -> 5 | F32: =(D31+D30+D32) -> 12 | G32: =(D31+D30+D32)-F32 -> 0 | K32: 32
B33: 13 | C33: Breakfast | D33: =ROUND(B33*0.25,0) -> 3 | K33: 33
B34: =B33 -> 13 | C34: Lunch | D34: =ROUND(B33*0.3,0) -> 4 | K34: 34
B35: =B33 -> 13 | C35: Dinner | D35: =ROUND(B33*0.45,0) -> 6 | F35: =(D34+D33+D35) -> 13 | G35: =(D34+D33+D35)-F35 -> 0 | K35: 35
B36: 14 | C36: Breakfast | D36: =ROUND(B36*0.25,0) -> 4 | K36: 36
B37: =B36 -> 14 | C37: Lunch | D37: =ROUND(B36*0.3,0) -> 4 | K37: 37
B38: =B36 -> 14 | C38: Dinner | D38: =ROUND(B36*0.45,0) -> 6 | F38: =(D37+D36+D38) -> 14 | G38: =(D37+D36+D38)-F38 -> 0 | K38: 38
B39: 15 | C39: Breakfast | D39: =ROUND(B39*0.25,0) -> 4 | K39: 39
B40: =B39 -> 15 | C40: Lunch | D40: =ROUND(B39*0.3,0) -> 5 | K40: 40
B41: =B39 -> 15 | C41: Dinner | D41: =ROUND(B39*0.45,0) -> 7 | F41: =(D40+D39+D41) -> 16 | G41: =(D40+D39+D41)-F41 -> 0 | K41: 41
B42: 16 | C42: Breakfast | D42: =ROUND(B42*0.25,0) -> 4 | K42: 42
B43: =B42 -> 16 | C43: Lunch | D43: =ROUND(B42*0.3,0) -> 5 | K43: 43
B44: =B42 -> 16 | C44: Dinner | D44: =ROUND(B42*0.45,0) -> 7 | F44: =(D43+D42+D44) -> 16 | G44: =(D43+D42+D44)-F44 -> 0 | K44: 44
B45: 17 | C45: Breakfast | D45: =ROUND(B45*0.25,0) -> 4 | K45: 45
B46: =B45 -> 17 | C46: Lunch | D46: =ROUND(B45*0.3,0) -> 5 | K46: 46
B47: =B45 -> 17 | C47: Dinner | D47: =ROUND(B45*0.45,0) -> 8 | F47: =(D46+D45+D47) -> 17 | G47: =(D46+D45+D47)-F47 -> 0 | K47: 47
B48: 18 | C48: Breakfast | D48: =ROUND(B48*0.25,0) -> 5 | K48: 48
B49: =B48 -> 18 | C49: Lunch | D49: =ROUND(B48*0.3,0) -> 5 | K49: 49
B50: =B48 -> 18 | C50: Dinner | D50: =ROUND(B48*0.45,0) -> 8 | F50: =(D49+D48+D50) -> 18 | G50: =(D49+D48+D50)-F50 -> 0 | K50: 50
B51: 19 | C51: Breakfast | D51: =ROUND(B51*0.25,0) -> 5 | K51: 51
B52: =B51 -> 19 | C52: Lunch | D52: =ROUND(B51*0.3,0) -> 6 | K52: 52
B53: =B51 -> 19 | C53: Dinner | D53: =ROUND(B51*0.45,0) -> 9 | F53: =(D52+D51+D53) -> 20 | G53: =(D52+D51+D53)-F53 -> 0 | K53: 53
B54: 20 | C54: Breakfast | D54: =ROUND(B54*0.25,0) -> 5 | K54: 54
B55: =B54 -> 20 | C55: Lunch | D55: =ROUND(B54*0.3,0) -> 6 | K55: 55
B56: =B54 -> 20 | C56: Dinner | D56: =ROUND(B54*0.45,0) -> 9 | F56: =(D55+D54+D56) -> 20 | G56: =(D55+D54+D56)-F56 -> 0 | K56: 56
B57: 21 | C57: Breakfast | D57: =ROUND(B57*0.25,0) -> 5 | K57: 57
B58: =B57 -> 21 | C58: Lunch | D58: =ROUND(B57*0.3,0) -> 6 | K58: 58
B59: =B57 -> 21 | C59: Dinner | D59: =ROUND(B57*0.45,0) -> 9 | F59: =(D58+D57+D59) -> 20 | G59: =(D58+D57+D59)-F59 -> 0 | K59: 59
B60: 22 | C60: Breakfast | D60: =ROUND(B60*0.25,0) -> 6 | K60: 60
B61: =B60 -> 22 | C61: Lunch | D61: =ROUND(B60*0.3,0) -> 7 | K61: 61
B62: =B60 -> 22 | C62: Dinner | D62: =ROUND(B60*0.45,0) -> 10 | F62: =(D61+D60+D62) -> 23 | G62: =(D61+D60+D62)-F62 -> 0 | K62: 62
B63: 23 | C63: Breakfast | D63: =ROUND(B63*0.25,0) -> 6 | K63: 63
B64: =B63 -> 23 | C64: Lunch | D64: =ROUND(B63*0.3,0) -> 7 | K64: 64
B65: =B63 -> 23 | C65: Dinner | D65: =ROUND(B63*0.45,0) -> 10 | F65: =(D64+D63+D65) -> 23 | G65: =(D64+D63+D65)-F65 -> 0 | K65: 65
B66: 24 | C66: Breakfast | D66: =ROUND(B66*0.25,0) -> 6 | K66: 66
B67: =B66 -> 24 | C67: Lunch | D67: =ROUND(B66*0.3,0) -> 7 | K67: 67
B68: =B66 -> 24 | C68: Dinner | D68: =ROUND(B66*0.45,0) -> 11 | F68: =(D67+D66+D68) -> 24 | G68: =(D67+D66+D68)-F68 -> 0 | K68: 68
B69: 25 | C69: Breakfast | D69: =ROUND(B69*0.25,0) -> 6 | K69: 69
B70: =B69 -> 25 | C70: Lunch | D70: =ROUND(B69*0.3,0) -> 8 | K70: 70
B71: =B69 -> 25 | C71: Dinner | D71: =ROUND(B69*0.45,0) -> 11 | F71: =(D70+D69+D71) -> 25 | G71: =(D70+D69+D71)-F71 -> 0 | K71: 71
B72: 26 | C72: Breakfast | D72: =ROUND(B72*0.25,0) -> 7 | K72: 72
B73: =B72 -> 26 | C73: Lunch | D73: =ROUND(B72*0.3,0) -> 8 | K73: 73
B74: =B72 -> 26 | C74: Dinner | D74: =ROUND(B72*0.45,0) -> 12 | F74: =(D73+D72+D74) -> 27 | G74: =(D73+D72+D74)-F74 -> 0 | K74: 74
B75: 27 | C75: Breakfast | D75: =ROUND(B75*0.25,0) -> 7 | K75: 75
B76: =B75 -> 27 | C76: Lunch | D76: =ROUND(B75*0.3,0) -> 8 | K76: 76
B77: =B75 -> 27 | C77: Dinner | D77: =ROUND(B75*0.45,0) -> 12 | F77: =(D76+D75+D77) -> 27 | G77: =(D76+D75+D77)-F77 -> 0 | K77: 77
B78: 28 | C78: Breakfast | D78: =ROUND(B78*0.25,0) -> 7 | K78: 78
B79: =B78 -> 28 | C79: Lunch | D79: =ROUND(B78*0.3,0) -> 8 | K79: 79
B80: =B78 -> 28 | C80: Dinner | D80: =ROUND(B78*0.45,0) -> 13 | F80: =(D79+D78+D80) -> 28 | G80: =(D79+D78+D80)-F80 -> 0 | K80: 80
B81: 29 | C81: Breakfast | D81: =ROUND(B81*0.25,0) -> 7 | K81: 81
B82: =B81 -> 29 | C82: Lunch | D82: =ROUND(B81*0.3,0) -> 9 | K82: 82
B83: =B81 -> 29 | C83: Dinner | D83: =ROUND(B81*0.45,0) -> 13 | F83: =(D82+D81+D83) -> 29 | G83: =(D82+D81+D83)-F83 -> 0 | K83: 83
B84: 30 | C84: Breakfast | D84: =ROUND(B84*0.25,0) -> 8 | K84: 84
B85: =B84 -> 30 | C85: Lunch | D85: =ROUND(B84*0.3,0) -> 9 | K85: 85
B86: =B84 -> 30 | C86: Dinner | D86: =ROUND(B84*0.45,0) -> 14 | F86: =(D85+D84+D86) -> 31 | G86: =(D85+D84+D86)-F86 -> 0 | K86: 86
B87: 31 | C87: Breakfast | D87: =ROUND(B87*0.25,0) -> 8 | K87: 87
B88: =B87 -> 31 | C88: Lunch | D88: =ROUND(B87*0.3,0) -> 9 | K88: 88
B89: =B87 -> 31 | C89: Dinner | D89: =ROUND(B87*0.45,0) -> 14 | F89: =(D88+D87+D89) -> 31 | G89: =(D88+D87+D89)-F89 -> 0 | K89: 89
B90: 32 | C90: Breakfast | D90: =ROUND(B90*0.25,0) -> 8 | K90: 90
B91: =B90 -> 32 | C91: Lunch | D91: =ROUND(B90*0.3,0) -> 10 | K91: 91
B92: =B90 -> 32 | C92: Dinner | D92: =ROUND(B90*0.45,0) -> 14 | F92: =(D91+D90+D92) -> 32 | G92: =(D91+D90+D92)-F92 -> 0 | K92: 92
B93: 33 | C93: Breakfast | D93: =ROUND(B93*0.25,0) -> 8 | K93: 93
B94: =B93 -> 33 | C94: Lunch | D94: =ROUND(B93*0.3,0) -> 10 | K94: 94
B95: =B93 -> 33 | C95: Dinner | D95: =ROUND(B93*0.45,0) -> 15 | F95: =(D94+D93+D95) -> 33 | G95: =(D94+D93+D95)-F95 -> 0 | K95: 95
B96: 34 | C96: Breakfast | D96: =ROUND(B96*0.25,0) -> 9 | K96: 96
B97: =B96 -> 34 | C97: Lunch | D97: =ROUND(B96*0.3,0) -> 10 | K97: 97
B98: =B96 -> 34 | C98: Dinner | D98: =ROUND(B96*0.45,0) -> 15 | F98: =(D97+D96+D98) -> 34 | G98: =(D97+D96+D98)-F98 -> 0 | K98: 98
B99: 35 | C99: Breakfast | D99: =ROUND(B99*0.25,0) -> 9 | K99: 99
B100: =B99 -> 35 | C100: Lunch | D100: =ROUND(B99*0.3,0) -> 11 | K100: 100
B101: =B99 -> 35 | C101: Dinner | D101: =ROUND(B99*0.45,0) -> 16 | F101: =(D100+D99+D101) -> 36 | G101: =(D100+D99+D101)-F101 -> 0 | K101: 101
B102: 36 | C102: Breakfast | D102: =ROUND(B102*0.25,0) -> 9 | K102: 102
B103: =B102 -> 36 | C103: Lunch | D103: =ROUND(B102*0.3,0) -> 11 | K103: 103
B104: =B102 -> 36 | C104: Dinner | D104: =ROUND(B102*0.45,0) -> 16 | F104: =(D103+D102+D104) -> 36 | G104: =(D103+D102+D104)-F104 -> 0 | K104: 104
B105: 37 | C105: Breakfast | D105: =ROUND(B105*0.25,0) -> 9 | K105: 105
B106: =B105 -> 37 | C106: Lunch | D106: =ROUND(B105*0.3,0) -> 11 | K106: 106
B107: =B105 -> 37 | C107: Dinner | D107: =ROUND(B105*0.45,0) -> 17 | F107: =(D106+D105+D107) -> 37 | G107: =(D106+D105+D107)-F107 -> 0 | K107: 107
B108: 38 | C108: Breakfast | D108: =ROUND(B108*0.25,0) -> 10 | K108: 108
B109: =B108 -> 38 | C109: Lunch | D109: =ROUND(B108*0.3,0) -> 11 | K109: 109
B110: =B108 -> 38 | C110: Dinner | D110: =ROUND(B108*0.45,0) -> 17 | F110: =(D109+D108+D110) -> 38 | G110: =(D109+D108+D110)-F110 -> 0 | K110: 110
B111: 39 | C111: Breakfast | D111: =ROUND(B111*0.25,0) -> 10 | K111: 111
B112: =B111 -> 39 | C112: Lunch | D112: =ROUND(B111*0.3,0) -> 12 | K112: 112
B113: =B111 -> 39 | C113: Dinner | D113: =ROUND(B111*0.45,0) -> 18 | F113: =(D112+D111+D113) -> 40 | G113: =(D112+D111+D113)-F113 -> 0 | K113: 113
B114: 40 | C114: Breakfast | D114: =ROUND(B114*0.25,0) -> 10 | K114: 114
B115: =B114 -> 40 | C115: Lunch | D115: =ROUND(B114*0.3,0) -> 12 | K115: 115
B116: =B114 -> 40 | C116: Dinner | D116: =ROUND(B114*0.45,0) -> 18 | F116: =(D115+D114+D116) -> 40 | G116: =(D115+D114+D116)-F116 -> 0 | K116: 116
B117: 41 | C117: Breakfast | D117: =ROUND(B117*0.25,0) -> 10 | K117: 117
B118: =B117 -> 41 | C118: Lunch | D118: =ROUND(B117*0.3,0) -> 12 | K118: 118
B119: =B117 -> 41 | C119: Dinner | D119: =ROUND(B117*0.45,0) -> 18 | F119: =(D118+D117+D119) -> 40 | G119: =(D118+D117+D119)-F119 -> 0 | K119: 119
B120: 42 | C120: Breakfast | D120: =ROUND(B120*0.25,0) -> 11 | K120: 120
B121: =B120 -> 42 | C121: Lunch | D121: =ROUND(B120*0.3,0) -> 13 | K121: 121
B122: =B120 -> 42 | C122: Dinner | D122: =ROUND(B120*0.45,0) -> 19 | F122: =(D121+D120+D122) -> 43 | G122: =(D121+D120+D122)-F122 -> 0 | K122: 122
B123: 43 | C123: Breakfast | D123: =ROUND(B123*0.25,0) -> 11 | K123: 123
B124: =B123 -> 43 | C124: Lunch | D124: =ROUND(B123*0.3,0) -> 13 | K124: 124
B125: =B123 -> 43 | C125: Dinner | D125: =ROUND(B123*0.45,0) -> 19 | F125: =(D124+D123+D125) -> 43 | G125: =(D124+D123+D125)-F125 -> 0 | K125: 125
B126: 44 | C126: Breakfast | D126: =ROUND(B126*0.25,0) -> 11 | K126: 126
B127: =B126 -> 44 | C127: Lunch | D127: =ROUND(B126*0.3,0) -> 13 | K127: 127
B128: =B126 -> 44 | C128: Dinner | D128: =ROUND(B126*0.45,0) -> 20 | F128: =(D127+D126+D128) -> 44 | G128: =(D127+D126+D128)-F128 -> 0 | K128: 128
B129: 45 | C129: Breakfast | D129: =ROUND(B129*0.25,0) -> 11 | K129: 129
B130: =B129 -> 45 | C130: Lunch | D130: =ROUND(B129*0.3,0) -> 14 | K130: 130
B131: =B129 -> 45 | C131: Dinner | D131: =ROUND(B129*0.45,0) -> 20 | F131: =(D130+D129+D131) -> 45 | G131: =(D130+D129+D131)-F131 -> 0 | K131: 131
B132: 46 | C132: Breakfast | D132: =ROUND(B132*0.25,0) -> 12 | K132: 132
B133: =B132 -> 46 | C133: Lunch | D133: =ROUND(B132*0.3,0) -> 14 | K133: 133
B134: =B132 -> 46 | C134: Dinner | D134: =ROUND(B132*0.45,0) -> 21 | F134: =(D133+D132+D134) -> 47 | G134: =(D133+D132+D134)-F134 -> 0 | K134: 134
B135: 47 | C135: Breakfast | D135: =ROUND(B135*0.25,0) -> 12 | K135: 135
B136: =B135 -> 47 | C136: Lunch | D136: =ROUND(B135*0.3,0) -> 14 | K136: 136
B137: =B135 -> 47 | C137: Dinner | D137: =ROUND(B135*0.45,0) -> 21 | F137: =(D136+D135+D137) -> 47 | G137: =(D136+D135+D137)-F137 -> 0 | K137: 137
B138: 48 | C138: Breakfast | D138: =ROUND(B138*0.25,0) -> 12 | K138: 138
B139: =B138 -> 48 | C139: Lunch | D139: =ROUND(B138*0.3,0) -> 14 | K139: 139
B140: =B138 -> 48 | C140: Dinner | D140: =ROUND(B138*0.45,0) -> 22 | F140: =(D139+D138+D140) -> 48 | G140: =(D139+D138+D140)-F140 -> 0 | K140: 140
B141: 49 | C141: Breakfast | D141: =ROUND(B141*0.25,0) -> 12 | K141: 141
B142: =B141 -> 49 | C142: Lunch | D142: =ROUND(B141*0.3,0) -> 15 | K142: 142
B143: =B141 -> 49 | C143: Dinner | D143: =ROUND(B141*0.45,0) -> 22 | F143: =(D142+D141+D143) -> 49 | G143: =(D142+D141+D143)-F143 -> 0 | K143: 143
B144: 50 | C144: Breakfast | D144: =ROUND(B144*0.25,0) -> 13 | K144: 144
B145: =B144 -> 50 | C145: Lunch | D145: =ROUND(B144*0.3,0) -> 15 | K145: 145
B146: =B144 -> 50 | C146: Dinner | D146: =ROUND(B144*0.45,0) -> 23 | F146: =(D145+D144+D146) -> 51 | G146: =(D145+D144+D146)-F146 -> 0 | K146: 146
B147: 51 | C147: Breakfast | D147: =ROUND(B147*0.25,0) -> 13 | K147: 147
B148: =B147 -> 51 | C148: Lunch | D148: =ROUND(B147*0.3,0) -> 15 | K148: 148
B149: =B147 -> 51 | C149: Dinner | D149: =ROUND(B147*0.45,0) -> 23 | F149: =(D148+D147+D149) -> 51 | G149: =(D148+D147+D149)-F149 -> 0 | K149: 149
B150: 52 | C150: Breakfast | D150: =ROUND(B150*0.25,0) -> 13 | K150: 150
B151: =B150 -> 52 | C151: Lunch | D151: =ROUND(B150*0.3,0) -> 16 | K151: 151
B152: =B150 -> 52 | C152: Dinner | D152: =ROUND(B150*0.45,0) -> 23 | F152: =(D151+D150+D152) -> 52 | G152: =(D151+D150+D152)-F152 -> 0 | K152: 152
B153: 53 | C153: Breakfast | D153: =ROUND(B153*0.25,0) -> 13 | K153: 153
B154: =B153 -> 53 | C154: Lunch | D154: =ROUND(B153*0.3,0) -> 16 | K154: 154
B155: =B153 -> 53 | C155: Dinner | D155: =ROUND(B153*0.45,0) -> 24 | F155: =(D154+D153+D155) -> 53 | G155: =(D154+D153+D155)-F155 -> 0 | K155: 155
B156: 54 | C156: Breakfast | D156: =ROUND(B156*0.25,0) -> 14 | K156: 156
B157: =B156 -> 54 | C157: Lunch | D157: =ROUND(B156*0.3,0) -> 16 | K157: 157
B158: =B156 -> 54 | C158: Dinner | D158: =ROUND(B156*0.45,0) -> 24 | F158: =(D157+D156+D158) -> 54 | G158: =(D157+D156+D158)-F158 -> 0 | K158: 158
B159: 55 | C159: Breakfast | D159: =ROUND(B159*0.25,0) -> 14 | K159: 159
B160: =B159 -> 55 | C160: Lunch | D160: =ROUND(B159*0.3,0) -> 17 | K160: 160
B161: =B159 -> 55 | C161: Dinner | D161: =ROUND(B159*0.45,0) -> 25 | F161: =(D160+D159+D161) -> 56 | G161: =(D160+D159+D161)-F161 -> 0 | K161: 161
B162: 56 | C162: Breakfast | D162: =ROUND(B162*0.25,0) -> 14 | K162: 162
B163: =B162 -> 56 | C163: Lunch | D163: =ROUND(B162*0.3,0) -> 17 | K163: 163
B164: =B162 -> 56 | C164: Dinner | D164: =ROUND(B162*0.45,0) -> 25 | F164: =(D163+D162+D164) -> 56 | G164: =(D163+D162+D164)-F164 -> 0 | K164: 164
B165: 57 | C165: Breakfast | D165: =ROUND(B165*0.25,0) -> 14 | K165: 165
B166: =B165 -> 57 | C166: Lunch | D166: =ROUND(B165*0.3,0) -> 17 | K166: 166
B167: =B165 -> 57 | C167: Dinner | D167: =ROUND(B165*0.45,0) -> 26 | F167: =(D166+D165+D167) -> 57 | G167: =(D166+D165+D167)-F167 -> 0 | K167: 167
B168: 58 | C168: Breakfast | D168: =ROUND(B168*0.25,0) -> 15 | K168: 168
B169: =B168 -> 58 | C169: Lunch | D169: =ROUND(B168*0.3,0) -> 17 | K169: 169
B170: =B168 -> 58 | C170: Dinner | D170: =ROUND(B168*0.45,0) -> 26 | F170: =(D169+D168+D170) -> 58 | G170: =(D169+D168+D170)-F170 -> 0 | K170: 170
B171: 59 | C171: Breakfast | D171: =ROUND(B171*0.25,0) -> 15 | K171: 171
B172: =B171 -> 59 | C172: Lunch | D172: =ROUND(B171*0.3,0) -> 18 | K172: 172
B173: =B171 -> 59 | C173: Dinner | D173: =ROUND(B171*0.45,0) -> 27 | F173: =(D172+D171+D173) -> 60 | G173: =(D172+D171+D173)-F173 -> 0 | K173: 173
B174: 60 | C174: Breakfast | D174: =ROUND(B174*0.25,0) -> 15 | K174: 174
B175: =B174 -> 60 | C175: Lunch | D175: =ROUND(B174*0.3,0) -> 18 | K175: 175
B176: =B174 -> 60 | C176: Dinner | D176: =ROUND(B174*0.45,0) -> 27 | F176: =(D175+D174+D176) -> 60 | G176: =(D175+D174+D176)-F176 -> 0 | K176: 176
B177: 61 | C177: Breakfast | D177: =ROUND(B177*0.25,0) -> 15 | K177: 177
B178: =B177 -> 61 | C178: Lunch | D178: =ROUND(B177*0.3,0) -> 18 | K178: 178
B179: =B177 -> 61 | C179: Dinner | D179: =ROUND(B177*0.45,0) -> 27 | F179: =(D178+D177+D179) -> 60 | G179: =(D178+D177+D179)-F179 -> 0 | K179: 179
B180: 62 | C180: Breakfast | D180: =ROUND(B180*0.25,0) -> 16 | K180: 180
B181: =B180 -> 62 | C181: Lunch | D181: =ROUND(B180*0.3,0) -> 19 | K181: 181
B182: =B180 -> 62 | C182: Dinner | D182: =ROUND(B180*0.45,0) -> 28 | F182: =(D181+D180+D182) -> 63 | G182: =(D181+D180+D182)-F182 -> 0 | K182: 182
B183: 63 | C183: Breakfast | D183: =ROUND(B183*0.25,0) -> 16 | K183: 183
B184: =B183 -> 63 | C184: Lunch | D184: =ROUND(B183*0.3,0) -> 19 | K184: 184
B185: =B183 -> 63 | C185: Dinner | D185: =ROUND(B183*0.45,0) -> 28 | F185: =(D184+D183+D185) -> 63 | G185: =(D184+D183+D185)-F185 -> 0 | K185: 185
B186: 64 | C186: Breakfast | D186: =ROUND(B186*0.25,0) -> 16 | K186: 186
B187: =B186 -> 64 | C187: Lunch | D187: =ROUND(B186*0.3,0) -> 19 | K187: 187
B188: =B186 -> 64 | C188: Dinner | D188: =ROUND(B186*0.45,0) -> 29 | F188: =(D187+D186+D188) -> 64 | G188: =(D187+D186+D188)-F188 -> 0 | K188: 188
B189: 65 | C189: Breakfast | D189: =ROUND(B189*0.25,0) -> 16 | K189: 189
B190: =B189 -> 65 | C190: Lunch | D190: =ROUND(B189*0.3,0) -> 20 | K190: 190
B191: =B189 -> 65 | C191: Dinner | D191: =ROUND(B189*0.45,0) -> 29 | F191: =(D190+D189+D191) -> 65 | G191: =(D190+D189+D191)-F191 -> 0 | K191: 191
B192: 66 | C192: Breakfast | D192: =ROUND(B192*0.25,0) -> 17 | K192: 192
B193: =B192 -> 66 | C193: Lunch | D193: =ROUND(B192*0.3,0) -> 20 | K193: 193
B194: =B192 -> 66 | C194: Dinner | D194: =ROUND(B192*0.45,0) -> 30 | F194: =(D193+D192+D194) -> 67 | G194: =(D193+D192+D194)-F194 -> 0 | K194: 194
B195: 67 | C195: Breakfast | D195: =ROUND(B195*0.25,0) -> 17 | K195: 195
B196: =B195 -> 67 | C196: Lunch | D196: =ROUND(B195*0.3,0) -> 20 | K196: 196
B197: =B195 -> 67 | C197: Dinner | D197: =ROUND(B195*0.45,0) -> 30 | F197: =(D196+D195+D197) -> 67 | G197: =(D196+D195+D197)-F197 -> 0 | K197: 197
B198: 68 | C198: Breakfast | D198: =ROUND(B198*0.25,0) -> 17 | K198: 198
B199: =B198 -> 68 | C199: Lunch | D199: =ROUND(B198*0.3,0) -> 20 | K199: 199
B200: =B198 -> 68 | C200: Dinner | D200: =ROUND(B198*0.45,0) -> 31 | F200: =(D199+D198+D200) -> 68 | G200: =(D199+D198+D200)-F200 -> 0 | K200: 200
B201: 69 | C201: Breakfast | D201: =ROUND(B201*0.25,0) -> 17 | K201: 201
... 1460 more rows

Sheet Formula (hidden)
A1: Part | B1: Code | C1: Price | D1: Find Part | E1: Find Code
A2: x | B2: 11 | C2: 5 | D2: y | E2: 12 | F2: =INDEX($C$2:$C$5,MATCH(D2,IF($B$2:$B$5=E2,$A$2:$A$5),0)) -> 8
A3: x | B3: 12 | C3: 6 | D3: y | E3: 11 | F3: =INDEX($C$2:$C$5,MATCH(D2,IF($B$2:$B$5=E2,$A$2:$A$5),0))
A4: y | B4: 11 | C4: 7 | D4: x | E4: 12 | F4: ctrl + shift + enter
A5: y | B5: 12 | C5: 8 | D5: x | E5: 11
F6: https://support.microsoft.com/en-us/kb/214142
F7: http://thinketg.com/say-goodbye-to-vlookup-and-hello-to-index-match/
A10: VBA Code
A11: CommandButton1
A13: Private Sub CommandButton1_Click()
A14: Sheets("Calculation").Range("C4").Value = "Yes"
A15: Sheets("Calculation").Range("C5").Value = "1"
A16: Sheets("Calculation").Range("C7").Value = "10"
A17: Sheets("Calculation").Range("C8").Value = "Dinner"
A18: Sheets("Calculation").Range("C11").Value = "0"
A19: Sheets("Calculation").Range("C13").Value = "1"
A20: Sheets("Calculation").Range("C14").Value = "1"
A21: Sheets("Calculation").Range("C16").Value = "1"
A22: Sheets("Calculation").Range("C20").Value = "No"
A23: Sheets("Calculation").Range("C21").Value = "0"
A25: MsgBox "Form has been reset."
A27: End Sub
